[Event "Titled Tuesday Blitz February 15 Early 2022"]
[White "Sviridov, Valery"]
[Black "Kopylov, Alexander A."]
[WhiteFideId "4120680"]
[BlackFideId "4164857"]
[WhiteElo "2454"]
[BlackElo "2436"]
[Result "1-0"]
[Round "03"]
[TimeControl "180+1"]
[Date "2022.02.15"]
[WhiteClock "0:02:06"]
[BlackClock "0:02:12"]

1. b3 {[%clk 0:03:00]}  b6 {[%clk 0:02:59]} 2. Bb2 {[%clk 0:03:00]}  Bb7 {[%clk 0:03:00]} 3. e3 {[%clk 0:03:00]}  Nf6 {[%clk 0:03:00]} 4. Nf3 {[%clk 0:03:01]}  g6 {[%clk 0:03:01]} 5. Bxf6 {[%clk 0:02:56]}  exf6 {[%clk 0:03:01]} 6. d4 {[%clk 0:02:57]}  Bg7 {[%clk 0:03:02]} 7. g3 {[%clk 0:02:57]}  O-O {[%clk 0:03:02]} 8. Bg2 {[%clk 0:02:57]}  f5 {[%clk 0:03:02]} 9. O-O {[%clk 0:02:57]}  c5 {[%clk 0:03:03]} 10. c3 {[%clk 0:02:56]}  d6 {[%clk 0:03:03]} 11. Nbd2 {[%clk 0:02:56]}  Nd7 {[%clk 0:03:03]} 12. Rc1 {[%clk 0:02:56]}  Nf6 {[%clk 0:03:04]} 13. Qe2 {[%clk 0:02:52]}  Qe7 {[%clk 0:03:02]} 14. Rfd1 {[%clk 0:02:52]}  Rfe8 {[%clk 0:03:02]} 15. Ne1 {[%clk 0:02:51]}  Bxg2 {[%clk 0:03:01]} 16. Nxg2 {[%clk 0:02:52]}  Ne4 {[%clk 0:03:01]} 17. Nxe4 {[%clk 0:02:51]}  fxe4 {[%clk 0:03:01]} 18. Nf4 {[%clk 0:02:51]}  Qb7 {[%clk 0:02:57]} 19. dxc5 {[%clk 0:02:50]}  dxc5 {[%clk 0:02:57]} 20. c4 {[%clk 0:02:50]}  Rad8 {[%clk 0:02:55]} 21. Nd5 {[%clk 0:02:43]}  Rd6 {[%clk 0:02:54]} 22. Rd2 {[%clk 0:02:41]}  h5 {[%clk 0:02:52]} 23. Rcd1 {[%clk 0:02:41]}  Rde6 {[%clk 0:02:52]} 24. Nf4 {[%clk 0:02:38]}  R6e7 {[%clk 0:02:51]} 25. Rd8 {[%clk 0:02:38]}  h4 {[%clk 0:02:49]} 26. Qg4 {[%clk 0:02:38]}  hxg3 {[%clk 0:02:49]} 27. hxg3 {[%clk 0:02:38]}  Qc6 {[%clk 0:02:39]} 28. R1d6 {[%clk 0:02:33]}  Qb7 {[%clk 0:02:33]} 29. Nd5 {[%clk 0:02:27]}  Re6 {[%clk 0:02:24]} 30. Qxe6 {[%clk 0:02:12]}  fxe6 {[%clk 0:02:20]} 31. Rxe8+ {[%clk 0:02:13]}  Kh7 {[%clk 0:02:14]} 32. Rdxe6 {[%clk 0:02:12]}  Qf7 {[%clk 0:02:12]} 33. Rxe4 {[%clk 0:02:09]}  Qf3 {[%clk 0:02:12]} 34. Rh4+ {[%clk 0:02:07]}  Bh6 {[%clk 0:02:12]} 35. Re7+ {[%clk 0:02:07]}  Kg8 {[%clk 0:02:12]} 36. Rxh6 {[%clk 0:02:06]} 1-0


[Site "https://www.chess.com"]

[Event "Titled Tuesday Blitz February 15 Early 2022"]
[White "Szpar, Milosz"]
[Black "Budrewicz, Krzysztof"]
[WhiteFideId "1184989"]
[BlackFideId "1127950"]
[WhiteElo "2447"]
[BlackElo "2248"]
[Result "1-0"]
[Round "03"]
[TimeControl "180+1"]
[Date "2022.02.15"]
[WhiteClock "0:01:19"]
[BlackClock "0:01:26"]

1. e4 {[%clk 0:03:00]}  c5 {[%clk 0:02:54]} 2. Nf3 {[%clk 0:03:00]}  e6 {[%clk 0:02:53]} 3. d4 {[%clk 0:02:57]}  cxd4 {[%clk 0:02:53]} 4. Nxd4 {[%clk 0:02:57]}  Nc6 {[%clk 0:02:51]} 5. Nc3 {[%clk 0:02:56]}  a6 {[%clk 0:02:50]} 6. Nxc6 {[%clk 0:02:52]}  bxc6 {[%clk 0:02:50]} 7. Qf3 {[%clk 0:02:48]}  d5 {[%clk 0:02:47]} 8. Qg3 {[%clk 0:02:46]}  Nf6 {[%clk 0:02:39]} 9. Bd3 {[%clk 0:02:36]}  a5 {[%clk 0:02:31]} 10. O-O {[%clk 0:02:28]}  Ba6 {[%clk 0:02:30]} 11. Bg5 {[%clk 0:02:04]}  Bxd3 {[%clk 0:02:28]} 12. cxd3 {[%clk 0:02:03]}  Qb8 {[%clk 0:02:24]} 13. Bf4 {[%clk 0:01:54]}  Qxb2 {[%clk 0:02:17]} 14. Be5 {[%clk 0:01:54]}  Qa3 {[%clk 0:02:09]} 15. exd5 {[%clk 0:01:46]}  cxd5 {[%clk 0:02:07]} 16. Nb5 {[%clk 0:01:43]}  Qa4 {[%clk 0:01:39]} 17. Nc7+ {[%clk 0:01:41]}  Kd8 {[%clk 0:01:35]} 18. Nxa8 {[%clk 0:01:39]}  Nh5 {[%clk 0:01:31]} 19. Qg5+ {[%clk 0:01:20]}  f6 {[%clk 0:01:26]} 20. Qxh5 {[%clk 0:01:20]}  fxe5 {[%clk 0:01:26]} 21. Qxe5 {[%clk 0:01:19]}  Qc6 {[%clk 0:01:26]} 1-0


[Site "https://www.chess.com"]

[Event "Titled Tuesday Blitz February 15 Early 2022"]
[White "Toncheva, Nadya"]
[Black "Lohani, Sujana"]
[WhiteFideId "2924056"]
[BlackFideId "12311987"]
[WhiteElo "1920"]
[BlackElo "1691"]
[Result "1-0"]
[Round "03"]
[TimeControl "180+1"]
[Date "2022.02.15"]
[WhiteClock "0:02:00"]
[BlackClock "0:00:01"]

1. d4 {[%clk 0:03:00]}  b6 {[%clk 0:03:00]} 2. e4 {[%clk 0:03:00]}  Bb7 {[%clk 0:03:01]} 3. Nc3 {[%clk 0:03:01]}  g6 {[%clk 0:02:56]} 4. Be3 {[%clk 0:03:00]}  Bg7 {[%clk 0:02:56]} 5. Qd2 {[%clk 0:03:01]}  d6 {[%clk 0:02:53]} 6. O-O-O {[%clk 0:03:00]}  Nd7 {[%clk 0:02:53]} 7. h4 {[%clk 0:03:00]}  h5 {[%clk 0:02:52]} 8. f3 {[%clk 0:03:00]}  c5 {[%clk 0:02:50]} 9. Nh3 {[%clk 0:02:59]}  cxd4 {[%clk 0:02:39]} 10. Bxd4 {[%clk 0:03:00]}  Ngf6 {[%clk 0:02:38]} 11. Ng5 {[%clk 0:02:58]}  O-O {[%clk 0:02:34]} 12. Bc4 {[%clk 0:02:52]}  Qc7 {[%clk 0:02:20]} 13. Bb3 {[%clk 0:02:51]}  Nc5 {[%clk 0:02:19]} 14. Kb1 {[%clk 0:02:45]}  a5 {[%clk 0:02:05]} 15. Qe2 {[%clk 0:02:26]}  a4 {[%clk 0:01:58]} 16. Bc4 {[%clk 0:02:26]}  a3 {[%clk 0:01:55]} 17. b3 {[%clk 0:02:24]}  Qc6 {[%clk 0:01:05]} 18. g4 {[%clk 0:02:18]}  e5 {[%clk 0:01:02]} 19. Bf2 {[%clk 0:02:10]}  Na6 {[%clk 0:00:23]} 20. Nd5 {[%clk 0:02:06]}  Rac8 {[%clk 0:00:12]} 21. Ne7+ {[%clk 0:02:05]}  Kh8 {[%clk 0:00:10]} 22. Nxc6 {[%clk 0:02:06]}  Rxc6 {[%clk 0:00:07]} 23. Bxa6 {[%clk 0:02:06]}  Bxa6 {[%clk 0:00:05]} 24. Qxa6 {[%clk 0:02:07]}  Rfc8 {[%clk 0:00:05]} 25. Rd2 {[%clk 0:02:03]}  hxg4 {[%clk 0:00:04]} 26. Nxf7+ {[%clk 0:02:02]}  Kg8 {[%clk 0:00:02]} 27. Nxd6 {[%clk 0:02:02]}  Rd8 {[%clk 0:00:01]} 28. Rhd1 {[%clk 0:02:00]} 1-0


[Site "https://www.chess.com"]

[Event "Titled Tuesday Blitz February 15 Early 2022"]
[White "Topalov, Aleksandar"]
[Black "Valle Maytin, Luis Enrique"]
[WhiteFideId "925659"]
[BlackFideId "3503666"]
[WhiteElo "2098"]
[BlackElo "1995"]
[Result "1-0"]
[Round "03"]
[TimeControl "180+1"]
[Date "2022.02.15"]
[WhiteClock "0:00:18"]
[BlackClock "0:00:51"]

1. b3 {[%clk 0:01:50]}  Nf6 {[%clk 0:02:58]} 2. Bb2 {[%clk 0:01:50]}  g6 {[%clk 0:02:59]} 3. Bxf6 {[%clk 0:01:49]}  exf6 {[%clk 0:02:58]} 4. c4 {[%clk 0:01:50]}  Bg7 {[%clk 0:02:59]} 5. Nc3 {[%clk 0:01:50]}  O-O {[%clk 0:02:59]} 6. e3 {[%clk 0:01:50]}  f5 {[%clk 0:02:59]} 7. Nge2 {[%clk 0:01:50]}  c6 {[%clk 0:02:59]} 8. g3 {[%clk 0:01:49]}  d5 {[%clk 0:02:59]} 9. cxd5 {[%clk 0:01:49]}  cxd5 {[%clk 0:02:58]} 10. d4 {[%clk 0:01:50]}  Be6 {[%clk 0:02:59]} 11. Bg2 {[%clk 0:01:50]}  Nc6 {[%clk 0:02:59]} 12. O-O {[%clk 0:01:51]}  Qd7 {[%clk 0:02:59]} 13. Nf4 {[%clk 0:01:47]}  Ne7 {[%clk 0:02:57]} 14. Rc1 {[%clk 0:01:47]}  a6 {[%clk 0:02:56]} 15. Na4 {[%clk 0:01:46]}  Qd6 {[%clk 0:02:50]} 16. Qd2 {[%clk 0:01:39]}  Rac8 {[%clk 0:02:46]} 17. Nc5 {[%clk 0:01:36]}  g5 {[%clk 0:02:33]} 18. Nfxe6 {[%clk 0:01:32]}  fxe6 {[%clk 0:02:33]} 19. Nxb7 {[%clk 0:01:31]}  Qb6 {[%clk 0:02:30]} 20. Nc5 {[%clk 0:01:29]}  Ng6 {[%clk 0:02:30]} 21. Nd7 {[%clk 0:01:25]}  Qb7 {[%clk 0:02:15]} 22. Nxf8 {[%clk 0:01:24]}  Bxf8 {[%clk 0:02:15]} 23. Rxc8 {[%clk 0:01:22]}  Qxc8 {[%clk 0:02:15]} 24. Rc1 {[%clk 0:01:23]}  Qb7 {[%clk 0:02:14]} 25. Qc3 {[%clk 0:01:22]}  h6 {[%clk 0:02:10]} 26. Qc7 {[%clk 0:01:20]}  Qxc7 {[%clk 0:02:01]} 27. Rxc7 {[%clk 0:01:20]}  a5 {[%clk 0:02:02]} 28. Bf1 {[%clk 0:01:08]}  Bb4 {[%clk 0:01:57]} 29. Ba6 {[%clk 0:01:06]}  Ne7 {[%clk 0:01:56]} 30. Bc8 {[%clk 0:01:04]}  Kf7 {[%clk 0:01:55]} 31. Bd7 {[%clk 0:00:59]}  Kf6 {[%clk 0:01:23]} 32. Ra7 {[%clk 0:00:57]}  Ng6 {[%clk 0:01:15]} 33. Ra6 {[%clk 0:00:53]}  Nf8 {[%clk 0:01:14]} 34. Bc8 {[%clk 0:00:53]}  Ke7 {[%clk 0:01:14]} 35. a3 {[%clk 0:00:47]}  Bxa3 {[%clk 0:01:10]} 36. Rxa5 {[%clk 0:00:48]}  Bb4 {[%clk 0:01:10]} 37. Rb5 {[%clk 0:00:47]}  Bd6 {[%clk 0:01:11]} 38. Rb7+ {[%clk 0:00:47]}  Kf6 {[%clk 0:01:10]} 39. b4 {[%clk 0:00:44]}  e5 {[%clk 0:01:09]} 40. b5 {[%clk 0:00:43]}  exd4 {[%clk 0:01:08]} 41. exd4 {[%clk 0:00:43]}  Bb4 {[%clk 0:01:05]} 42. Ra7 {[%clk 0:00:40]}  Bc3 {[%clk 0:01:05]} 43. Ra4 {[%clk 0:00:37]}  Ne6 {[%clk 0:00:57]} 44. Bxe6 {[%clk 0:00:36]}  Kxe6 {[%clk 0:00:57]} 45. b6 {[%clk 0:00:28]}  Kd7 {[%clk 0:00:57]} 46. Ra8 {[%clk 0:00:19]}  Kc6 {[%clk 0:00:54]} 47. Rc8+ {[%clk 0:00:18]}  Kxb6 {[%clk 0:00:51]} 48. Rxc3 {[%clk 0:00:18]} 1-0


[Site "https://www.chess.com"]

[Event "Titled Tuesday Blitz February 15 Early 2022"]
[White "Urbina Perez, Juan Antonio"]
[Black "Jumabayev, Rinat"]
[WhiteFideId "2217368"]
[BlackFideId "13702661"]
[WhiteElo "2192"]
[BlackElo "2561"]
[Result "1-0"]
[Round "03"]
[TimeControl "180+1"]
[Date "2022.02.15"]
[WhiteClock "0:01:00"]
[BlackClock "0:00:59"]

1. d4 {[%clk 0:03:00]}  d6 {[%clk 0:02:59]} 2. e4 {[%clk 0:02:59]}  g6 {[%clk 0:02:58]} 3. c3 {[%clk 0:02:57]}  Bg7 {[%clk 0:02:58]} 4. Bd3 {[%clk 0:02:57]}  Nc6 {[%clk 0:02:53]} 5. Nf3 {[%clk 0:02:56]}  Nf6 {[%clk 0:02:54]} 6. d5 {[%clk 0:02:55]}  Nb8 {[%clk 0:02:53]} 7. c4 {[%clk 0:02:55]}  c6 {[%clk 0:02:51]} 8. Nc3 {[%clk 0:02:53]}  O-O {[%clk 0:02:51]} 9. O-O {[%clk 0:02:53]}  Nbd7 {[%clk 0:02:50]} 10. h3 {[%clk 0:02:48]}  a5 {[%clk 0:02:44]} 11. Re1 {[%clk 0:02:47]}  Nc5 {[%clk 0:02:44]} 12. Be3 {[%clk 0:02:45]}  Nfd7 {[%clk 0:02:36]} 13. Bd4 {[%clk 0:02:34]}  e5 {[%clk 0:02:32]} 14. dxe6 {[%clk 0:02:30]}  Nxe6 {[%clk 0:02:33]} 15. Bxg7 {[%clk 0:02:29]}  Kxg7 {[%clk 0:02:34]} 16. e5 {[%clk 0:02:25]}  dxe5 {[%clk 0:02:15]} 17. Nxe5 {[%clk 0:02:26]}  Nxe5 {[%clk 0:02:15]} 18. Rxe5 {[%clk 0:02:25]}  Qf6 {[%clk 0:02:11]} 19. Re1 {[%clk 0:02:22]}  Rd8 {[%clk 0:02:11]} 20. Qb1 {[%clk 0:02:09]}  Nf4 {[%clk 0:02:06]} 21. Be4 {[%clk 0:01:49]}  Rd2 {[%clk 0:02:01]} 22. Rf1 {[%clk 0:01:36]}  Be6 {[%clk 0:01:38]} 23. Qc1 {[%clk 0:01:29]}  Rad8 {[%clk 0:01:37]} 24. b3 {[%clk 0:01:26]}  Qxc3 {[%clk 0:01:27]} 25. Qxc3+ {[%clk 0:01:22]}  Kg8 {[%clk 0:01:23]} 26. Qxa5 {[%clk 0:01:15]}  R8d4 {[%clk 0:01:20]} 27. Bf3 {[%clk 0:01:09]}  Bxh3 {[%clk 0:00:59]} 28. Rad1 {[%clk 0:01:00]} 1-0


[Site "https://www.chess.com"]

[Event "Titled Tuesday Blitz February 15 Early 2022"]
[White "Vaishali, Rameshbabu"]
[Black "Danielian, Vardan"]
[WhiteFideId "5091756"]
[BlackFideId "13301594"]
[WhiteElo "2343"]
[BlackElo "2412"]
[Result "1-0"]
[Round "03"]
[TimeControl "180+1"]
[Date "2022.02.15"]
[WhiteClock "0:00:08"]
[BlackClock "0:00:07"]

1. d4 {[%clk 0:03:00]}  Nf6 {[%clk 0:02:55]} 2. c4 {[%clk 0:03:00]}  g6 {[%clk 0:02:52]} 3. Nc3 {[%clk 0:02:59]}  Bg7 {[%clk 0:02:52]} 4. e4 {[%clk 0:02:59]}  O-O {[%clk 0:02:53]} 5. Be2 {[%clk 0:02:56]}  d6 {[%clk 0:02:53]} 6. h4 {[%clk 0:02:56]}  h5 {[%clk 0:02:49]} 7. Bg5 {[%clk 0:02:37]}  c5 {[%clk 0:02:48]} 8. d5 {[%clk 0:02:36]}  b5 {[%clk 0:02:48]} 9. cxb5 {[%clk 0:02:34]}  a6 {[%clk 0:02:48]} 10. Qd2 {[%clk 0:02:30]}  axb5 {[%clk 0:02:47]} 11. Bxb5 {[%clk 0:02:31]}  Ba6 {[%clk 0:02:47]} 12. Bxa6 {[%clk 0:02:29]}  Nxa6 {[%clk 0:02:47]} 13. Nge2 {[%clk 0:02:27]}  Qa5 {[%clk 0:02:46]} 14. a4 {[%clk 0:02:25]}  Rfb8 {[%clk 0:02:45]} 15. f3 {[%clk 0:02:19]}  Nc7 {[%clk 0:02:16]} 16. O-O {[%clk 0:02:13]}  Rb7 {[%clk 0:02:11]} 17. Rfb1 {[%clk 0:01:50]}  Rab8 {[%clk 0:02:10]} 18. Qc2 {[%clk 0:01:49]}  Kf8 {[%clk 0:01:57]} 19. b3 {[%clk 0:01:46]}  Nd7 {[%clk 0:01:55]} 20. Bd2 {[%clk 0:01:41]}  Qa6 {[%clk 0:01:53]} 21. Ra3 {[%clk 0:01:31]}  Ne5 {[%clk 0:01:48]} 22. Nf4 {[%clk 0:01:13]}  Kg8 {[%clk 0:01:42]} 23. a5 {[%clk 0:01:06]}  c4 {[%clk 0:01:02]} 24. Nh3 {[%clk 0:00:39]}  Bf6 {[%clk 0:00:30]} 25. Bg5 {[%clk 0:00:27]}  cxb3 {[%clk 0:00:24]} 26. Raxb3 {[%clk 0:00:27]}  Rxb3 {[%clk 0:00:24]} 27. Rxb3 {[%clk 0:00:28]}  Rxb3 {[%clk 0:00:25]} 28. Qxb3 {[%clk 0:00:29]}  Qxa5 {[%clk 0:00:25]} 29. Kh2 {[%clk 0:00:22]}  Kg7 {[%clk 0:00:19]} 30. Ne2 {[%clk 0:00:19]}  Nb5 {[%clk 0:00:19]} 31. Qe3 {[%clk 0:00:18]}  Qb4 {[%clk 0:00:15]} 32. Ng3 {[%clk 0:00:18]}  Nd4 {[%clk 0:00:14]} 33. Nf4 {[%clk 0:00:14]}  Ng4+ {[%clk 0:00:11]} 34. fxg4 {[%clk 0:00:13]}  hxg4 {[%clk 0:00:11]} 35. Bxf6+ {[%clk 0:00:11]}  exf6 {[%clk 0:00:12]} 36. Nfe2 {[%clk 0:00:09]}  Nxe2 {[%clk 0:00:08]} 37. Qxe2 {[%clk 0:00:08]}  Qd4 {[%clk 0:00:07]} 38. Qxg4 {[%clk 0:00:08]}  f5 {[%clk 0:00:07]} 39. Nxf5+ {[%clk 0:00:08]} 1-0


[Site "https://www.chess.com"]

[Event "Titled Tuesday Blitz February 15 Early 2022"]
[White "Van den Dikkenberg, Erik"]
[Black "Guseva, Marina"]
[WhiteFideId "1005880"]
[BlackFideId "4149351"]
[WhiteElo "2118"]
[BlackElo "2232"]
[Result "0-1"]
[Round "03"]
[TimeControl "180+1"]
[Date "2022.02.15"]
[WhiteClock "0:00:02"]
[BlackClock "0:00:44"]

1. e4 {[%clk 0:03:00]}  c5 {[%clk 0:02:59]} 2. Nc3 {[%clk 0:02:55]}  d6 {[%clk 0:02:58]} 3. f4 {[%clk 0:02:56]}  g6 {[%clk 0:02:57]} 4. Bb5+ {[%clk 0:02:53]}  Bd7 {[%clk 0:02:56]} 5. Bc4 {[%clk 0:02:53]}  Bg7 {[%clk 0:02:54]} 6. Nf3 {[%clk 0:02:47]}  e6 {[%clk 0:02:51]} 7. O-O {[%clk 0:02:45]}  Nc6 {[%clk 0:02:49]} 8. d3 {[%clk 0:02:42]}  Nge7 {[%clk 0:02:48]} 9. a4 {[%clk 0:02:41]}  O-O {[%clk 0:02:47]} 10. Kh1 {[%clk 0:02:41]}  a6 {[%clk 0:02:44]} 11. Qe1 {[%clk 0:02:38]}  Nd4 {[%clk 0:02:39]} 12. Nxd4 {[%clk 0:02:35]}  cxd4 {[%clk 0:02:38]} 13. Ne2 {[%clk 0:02:35]}  b5 {[%clk 0:02:38]} 14. axb5 {[%clk 0:02:33]}  axb5 {[%clk 0:02:38]} 15. Rxa8 {[%clk 0:02:33]}  Qxa8 {[%clk 0:02:37]} 16. Bb3 {[%clk 0:02:33]}  Kh8 {[%clk 0:02:34]} 17. Ng1 {[%clk 0:02:32]}  Nc6 {[%clk 0:02:14]} 18. Nf3 {[%clk 0:02:30]}  Na5 {[%clk 0:02:13]} 19. Bd2 {[%clk 0:02:23]}  Nxb3 {[%clk 0:02:12]} 20. cxb3 {[%clk 0:02:23]}  Qa2 {[%clk 0:02:05]} 21. Bb4 {[%clk 0:02:23]}  Qxb3 {[%clk 0:02:01]} 22. Bxd6 {[%clk 0:02:22]}  Rc8 {[%clk 0:01:57]} 23. Ne5 {[%clk 0:02:04]}  Be8 {[%clk 0:01:53]} 24. Qh4 {[%clk 0:01:56]}  f6 {[%clk 0:01:38]} 25. Be7 {[%clk 0:01:11]}  fxe5 {[%clk 0:01:10]} 26. fxe5 {[%clk 0:00:50]}  Qxd3 {[%clk 0:01:08]} 27. Qf4 {[%clk 0:00:18]}  Qe3 {[%clk 0:00:48]} 28. Qh4 {[%clk 0:00:12]}  Rc1 {[%clk 0:00:45]} 29. Bf6 {[%clk 0:00:02]}  Rxf1# {[%clk 0:00:44]} 0-1


[Site "https://www.chess.com"]

[Event "Titled Tuesday Blitz February 15 Early 2022"]
[White "Varney, Zoe"]
[Black "Ozkan, Taha"]
[WhiteFideId "436135"]
[BlackFideId "34577173"]
[WhiteElo "1808"]
[BlackElo "2024"]
[Result "0-1"]
[Round "03"]
[TimeControl "180+1"]
[Date "2022.02.15"]
[WhiteClock "0:00:03"]
[BlackClock "0:01:12"]

1. e4 {[%clk 0:03:00]}  e6 {[%clk 0:02:56]} 2. d4 {[%clk 0:02:59]}  d5 {[%clk 0:02:56]} 3. exd5 {[%clk 0:02:59]}  exd5 {[%clk 0:02:55]} 4. Nf3 {[%clk 0:02:59]}  Bd6 {[%clk 0:02:52]} 5. c4 {[%clk 0:02:58]}  Nf6 {[%clk 0:02:52]} 6. Nc3 {[%clk 0:02:58]}  O-O {[%clk 0:02:52]} 7. Bg5 {[%clk 0:02:54]}  dxc4 {[%clk 0:02:38]} 8. Bxc4 {[%clk 0:02:47]}  Re8+ {[%clk 0:02:38]} 9. Be2 {[%clk 0:02:36]}  c6 {[%clk 0:02:32]} 10. O-O {[%clk 0:02:35]}  Be6 {[%clk 0:02:33]} 11. Ne4 {[%clk 0:02:18]}  Be7 {[%clk 0:02:29]} 12. Nc5 {[%clk 0:02:18]}  Bc8 {[%clk 0:02:24]} 13. Bc4 {[%clk 0:02:02]}  b6 {[%clk 0:02:11]} 14. Nd3 {[%clk 0:01:37]}  Bf5 {[%clk 0:02:02]} 15. Nde5 {[%clk 0:01:23]}  Nd5 {[%clk 0:01:55]} 16. Bxe7 {[%clk 0:01:06]}  Rxe7 {[%clk 0:01:56]} 17. Qb3 {[%clk 0:00:55]}  b5 {[%clk 0:01:34]} 18. Nxc6 {[%clk 0:00:33]}  bxc4 {[%clk 0:01:32]} 19. Nxe7+ {[%clk 0:00:32]}  Nxe7 {[%clk 0:01:29]} 20. Qxc4 {[%clk 0:00:22]}  Nbc6 {[%clk 0:01:28]} 21. Rac1 {[%clk 0:00:19]}  Be6 {[%clk 0:01:26]} 22. Qc5 {[%clk 0:00:17]}  Bxa2 {[%clk 0:01:25]} 23. Rfd1 {[%clk 0:00:15]}  Bd5 {[%clk 0:01:25]} 24. Ne5 {[%clk 0:00:15]}  Rb8 {[%clk 0:01:24]} 25. Nxc6 {[%clk 0:00:15]}  Nxc6 {[%clk 0:01:25]} 26. Re1 {[%clk 0:00:12]}  h6 {[%clk 0:01:21]} 27. Rc2 {[%clk 0:00:11]}  Nb4 {[%clk 0:01:14]} 28. Rce2 {[%clk 0:00:06]}  Nd3 {[%clk 0:01:11]} 29. Re8+ {[%clk 0:00:04]}  Qxe8 {[%clk 0:01:11]} 30. Rxe8+ {[%clk 0:00:04]}  Rxe8 {[%clk 0:01:12]} 31. Qxd5 {[%clk 0:00:03]}  Re1# {[%clk 0:01:12]} 0-1


[Site "https://www.chess.com"]

[Event "Titled Tuesday Blitz February 15 Early 2022"]
[White "Vlassov, Nikolai"]
[Black "Petrosyan, Manuel"]
[WhiteFideId "4103360"]
[BlackFideId "13300857"]
[WhiteElo "2407"]
[BlackElo "2592"]
[Result "1-0"]
[Round "03"]
[TimeControl "180+1"]
[Date "2022.02.15"]
[WhiteClock "0:00:47"]
[BlackClock "0:00:01"]

1. e4 {[%clk 0:03:00]}  c6 {[%clk 0:02:58]} 2. d4 {[%clk 0:03:01]}  d5 {[%clk 0:02:59]} 3. e5 {[%clk 0:03:01]}  Bf5 {[%clk 0:02:59]} 4. Nc3 {[%clk 0:03:01]}  h5 {[%clk 0:02:58]} 5. Nf3 {[%clk 0:03:01]}  e6 {[%clk 0:02:55]} 6. Bd3 {[%clk 0:03:01]}  Bxd3 {[%clk 0:02:42]} 7. Qxd3 {[%clk 0:03:02]}  Ne7 {[%clk 0:02:39]} 8. O-O {[%clk 0:03:01]}  Nf5 {[%clk 0:02:38]} 9. Ne2 {[%clk 0:03:01]}  Be7 {[%clk 0:02:32]} 10. Ng3 {[%clk 0:03:00]}  Nxg3 {[%clk 0:02:30]} 11. fxg3 {[%clk 0:03:00]}  Nd7 {[%clk 0:02:18]} 12. Be3 {[%clk 0:02:59]}  Qb6 {[%clk 0:02:14]} 13. b3 {[%clk 0:02:53]}  O-O-O {[%clk 0:02:06]} 14. c4 {[%clk 0:02:52]}  dxc4 {[%clk 0:02:05]} 15. bxc4 {[%clk 0:02:52]}  Qa6 {[%clk 0:02:02]} 16. Qc2 {[%clk 0:02:39]}  Nb6 {[%clk 0:01:50]} 17. Nd2 {[%clk 0:02:36]}  Bb4 {[%clk 0:01:30]} 18. Rxf7 {[%clk 0:01:57]}  Bxd2 {[%clk 0:01:30]} 19. Bxd2 {[%clk 0:01:51]}  Rxd4 {[%clk 0:01:15]} 20. Bg5 {[%clk 0:01:22]}  Qxc4 {[%clk 0:00:34]} 21. Qf2 {[%clk 0:01:14]}  Nd7 {[%clk 0:00:12]} 22. Rxg7 {[%clk 0:01:06]}  Qd5 {[%clk 0:00:12]} 23. Rf1 {[%clk 0:01:00]}  Rd1 {[%clk 0:00:12]} 24. h3 {[%clk 0:00:58]}  Rxf1+ {[%clk 0:00:12]} 25. Qxf1 {[%clk 0:00:57]}  a5 {[%clk 0:00:05]} 26. Kh2 {[%clk 0:00:56]}  h4 {[%clk 0:00:03]} 27. Bxh4 {[%clk 0:00:54]}  Qxe5 {[%clk 0:00:03]} 28. Qf7 {[%clk 0:00:51]}  Qd6 {[%clk 0:00:04]} 29. Be7 {[%clk 0:00:50]}  Qd4 {[%clk 0:00:01]} 30. Bf6 {[%clk 0:00:47]} 1-0


[Site "https://www.chess.com"]

[Event "Titled Tuesday Blitz February 15 Early 2022"]
[White "Vokhidov, Shamsiddin"]
[Black "Sokolovsky, Yahli"]
[WhiteFideId "14204223"]
[BlackFideId "2820242"]
[WhiteElo "2611"]
[BlackElo "1770"]
[Result "0-1"]
[Round "03"]
[TimeControl "180+1"]
[Date "2022.02.15"]
[WhiteClock "0:00:10"]
[BlackClock "0:00:05"]

1. e4 {[%clk 0:03:00]}  g6 {[%clk 0:02:57]} 2. d4 {[%clk 0:03:00]}  Bg7 {[%clk 0:02:57]} 3. Nf3 {[%clk 0:03:00]}  d6 {[%clk 0:02:57]} 4. Bc4 {[%clk 0:03:00]}  e6 {[%clk 0:02:57]} 5. Qe2 {[%clk 0:03:00]}  Nf6 {[%clk 0:02:56]} 6. O-O {[%clk 0:02:57]}  O-O {[%clk 0:02:56]} 7. Nbd2 {[%clk 0:02:57]}  d5 {[%clk 0:02:54]} 8. Bb3 {[%clk 0:02:51]}  h6 {[%clk 0:02:23]} 9. c3 {[%clk 0:02:50]}  b6 {[%clk 0:02:21]} 10. Re1 {[%clk 0:02:50]}  Bb7 {[%clk 0:02:21]} 11. e5 {[%clk 0:02:49]}  Nfd7 {[%clk 0:02:22]} 12. Nf1 {[%clk 0:02:49]}  c5 {[%clk 0:02:22]} 13. Be3 {[%clk 0:02:47]}  Nc6 {[%clk 0:02:21]} 14. Qd2 {[%clk 0:02:47]}  Kh7 {[%clk 0:02:21]} 15. h4 {[%clk 0:02:47]}  cxd4 {[%clk 0:02:13]} 16. cxd4 {[%clk 0:02:47]}  Na5 {[%clk 0:02:14]} 17. N1h2 {[%clk 0:02:44]}  Nc4 {[%clk 0:02:08]} 18. Qe2 {[%clk 0:02:40]}  a5 {[%clk 0:01:54]} 19. Bc2 {[%clk 0:02:38]}  Ba6 {[%clk 0:01:40]} 20. Bd3 {[%clk 0:02:26]}  Nxe3 {[%clk 0:01:31]} 21. Bxa6 {[%clk 0:02:24]}  Nc2 {[%clk 0:01:28]} 22. Qxc2 {[%clk 0:02:21]}  Rxa6 {[%clk 0:01:29]} 23. h5 {[%clk 0:02:20]}  Qc8 {[%clk 0:01:15]} 24. hxg6+ {[%clk 0:02:15]}  fxg6 {[%clk 0:01:15]} 25. Qe2 {[%clk 0:02:11]}  Ra7 {[%clk 0:01:13]} 26. Rac1 {[%clk 0:02:08]}  Rc7 {[%clk 0:01:12]} 27. Qe3 {[%clk 0:02:07]}  Rc2 {[%clk 0:00:48]} 28. Red1 {[%clk 0:01:40]}  Qc4 {[%clk 0:00:46]} 29. b3 {[%clk 0:01:34]}  Qc6 {[%clk 0:00:43]} 30. Ne1 {[%clk 0:01:27]}  Rxc1 {[%clk 0:00:26]} 31. Rxc1 {[%clk 0:01:27]}  Qb7 {[%clk 0:00:27]} 32. Qh3 {[%clk 0:01:23]}  Re8 {[%clk 0:00:21]} 33. Nhf3 {[%clk 0:01:19]}  Kg8 {[%clk 0:00:21]} 34. Nd3 {[%clk 0:01:18]}  Nf8 {[%clk 0:00:21]} 35. Nf4 {[%clk 0:01:13]}  Rc8 {[%clk 0:00:19]} 36. Re1 {[%clk 0:01:01]}  Qf7 {[%clk 0:00:19]} 37. Qg4 {[%clk 0:00:51]}  Rc2 {[%clk 0:00:18]} 38. Re2 {[%clk 0:00:47]}  Rc1+ {[%clk 0:00:16]} 39. Kh2 {[%clk 0:00:47]}  g5 {[%clk 0:00:17]} 40. Nh5 {[%clk 0:00:43]}  Ng6 {[%clk 0:00:17]} 41. g3 {[%clk 0:00:38]}  Bh8 {[%clk 0:00:09]} 42. Kg2 {[%clk 0:00:37]}  Kh7 {[%clk 0:00:08]} 43. Re3 {[%clk 0:00:35]}  Qf5 {[%clk 0:00:06]} 44. Nh2 {[%clk 0:00:26]}  Qxg4 {[%clk 0:00:04]} 45. Nxg4 {[%clk 0:00:27]}  Ne7 {[%clk 0:00:04]} 46. Ngf6+ {[%clk 0:00:21]}  Kg6 {[%clk 0:00:05]} 47. Rf3 {[%clk 0:00:18]}  Nf5 {[%clk 0:00:05]} 48. Rd3 {[%clk 0:00:12]}  Rc2 {[%clk 0:00:05]} 49. a4 {[%clk 0:00:12]}  Rb2 {[%clk 0:00:04]} 50. Rc3 {[%clk 0:00:11]}  Nxd4 {[%clk 0:00:03]} 51. Rc8 {[%clk 0:00:10]}  Bxf6 {[%clk 0:00:03]} 52. exf6 {[%clk 0:00:11]}  Nf5 {[%clk 0:00:01]} 53. Rg8+ {[%clk 0:00:10]}  Kf7 {[%clk 0:00:01]} 54. Rh8 {[%clk 0:00:10]}  Kg6 {[%clk 0:00:02]} 55. g4 {[%clk 0:00:09]}  Nh4+ {[%clk 0:00:02]} 56. Kf1 {[%clk 0:00:10]}  Rb1+ {[%clk 0:00:03]} 57. Ke2 {[%clk 0:00:10]}  Ng2 {[%clk 0:00:02]} 58. Rg8+ {[%clk 0:00:10]}  Kf7 {[%clk 0:00:03]} 59. Rg7+ {[%clk 0:00:10]}  Kf8 {[%clk 0:00:04]} 60. Rb7 {[%clk 0:00:09]}  Rb2+ {[%clk 0:00:04]} 61. Kf3 {[%clk 0:00:09]}  Nh4+ {[%clk 0:00:04]} 62. Ke3 {[%clk 0:00:10]}  Rxb3+ {[%clk 0:00:04]} 63. Kd4 {[%clk 0:00:10]}  Nf3# {[%clk 0:00:05]} 0-1


[Site "https://www.chess.com"]